bitfinex/quotes_BTCUSD_20250212
["timestamp","ask_amount","ask_price","bid_price","bid_amount"]
[1739370619485,0.69090562,94817.0,94816.0,0.00198136]
[1739370619623,0.73553809,94817.0,94816.0,0.00198136]
[1739370620041,0.173,94816.0,94801.0,0.0001066]
[1739370620272,0.54102765,94802.0,94801.0,0.0001066]
[1739370620635,0.56402765,94802.0,94801.0,0.0001066]
[1739370620875,0.173,94801.0,94774.0,0.0144767]
[1739370621079,0.10250365,94790.0,94774.0,0.01460977]
[1739370621408,0.173,94775.0,94774.0,0.01460977]
[1739370621576,0.27550365,94775.0,94774.0,0.01460977]
[1739370622170,0.32080365,94775.0,94774.0,0.01460977]
[1739370622747,0.38507066,94775.0,94774.0,0.01760977]
[1739370623193,0.39997058,94775.0,94774.0,0.01760977]
[1739370623379,0.331291,94762.0,94761.0,0.0001066]
[1739370623607,0.51599465,94762.0,94761.0,0.0001066]
[1739370624950,0.52581484,94762.0,94761.0,0.0001066]
[1739370625166,0.54739439,94762.0,94761.0,0.0001066]
[1739370625376,0.64634333,94762.0,94761.0,0.0081066]
[1739370625583,0.71061034,94762.0,94761.0,0.0081066]
[1739370626230,0.71061034,94762.0,94761.0,0.0061066]
[1739370626436,0.71061034,94762.0,94761.0,0.0071066]
[1739370626865,1.23825034,94762.0,94761.0,0.0071066]
[1739370627075,0.158328,94740.0,94723.0,0.158354]
[1739370627279,0.158328,94740.0,94722.0,0.0001065]
[1739370627280,0.41083165,94740.0,94722.0,0.0001065]
[1739370628320,0.25350365,94740.0,94739.0,0.00055166]
[1739370628530,0.41183165,94740.0,94739.0,0.00055166]
[1739370628730,0.53398439,94740.0,94739.0,0.00055166]
[1739370628936,0.55948434,94740.0,94739.0,0.00055166]
[1739370629141,0.68628434,94740.0,94739.0,0.00055166]
[1739370629320,1.21392434,94740.0,94739.0,0.00155166]
[1739370629568,1.21392434,94740.0,94739.0,0.00055166]
[1739370629761,1.15503861,94740.0,94739.0,0.00055166]
[1739370630184,1.07423861,94740.0,94739.0,0.00055166]
[1739370630386,0.87091061,94740.0,94739.0,0.00055166]
[1739370630561,0.86991061,94740.0,94739.0,0.00055166]
[1739370631113,0.9346879,94740.0,94739.0,0.00055166]
[1739370631679,0.87191061,94740.0,94739.0,0.00055166]
[1739370631888,0.72691061,94740.0,94739.0,0.00055166]
[1739370632098,0.6087272,94740.0,94739.0,0.07775166]
[1739370632315,0.6087272,94740.0,94739.0,0.09836896]
[1739370632512,0.00181301,94740.0,94739.0,0.29490043]
[1739370632874,0.00281301,94740.0,94739.0,0.14816896]
[1739370633078,0.001,94740.0,94739.0,0.14816896]
[1739370633277,0.002,94740.0,94739.0,0.02116896]
[1739370633549,0.002,94740.0,94739.0,0.00610592]
[1739370633854,0.10450365,94740.0,94739.0,0.16443492]
[1739370633968,0.10450365,94740.0,94739.0,0.00610592]
[1739370634166,0.10350365,94740.0,94739.0,0.00610592]
[1739370634445,0.10250365,94740.0,94739.0,0.00610592]
[1739370634960,0.10450365,94740.0,94739.0,0.00610592]
[1739370635085,0.10550365,94740.0,94739.0,0.00610592]
[1739370635529,0.003,94740.0,94739.0,0.00610592]
[1739370635738,0.003,94740.0,94739.0,0.16443492]
[1739370636172,0.001,94740.0,94739.0,0.16443492]
[1739370636441,0.10350365,94740.0,94739.0,0.00610592]
[1739370636647,0.10450365,94740.0,94739.0,0.00910592]
[1739370637062,0.10450365,94740.0,94739.0,0.00610592]
[1739370637063,0.001,94740.0,94739.0,0.00610592]
[1739370637262,0.001,94740.0,94739.0,0.00569705]
[1739370637478,0.10350365,94740.0,94739.0,0.00579321]
[1739370637854,0.13125332,94740.0,94739.0,0.00355166]
[1739370637990,0.10250365,94740.0,94739.0,0.00055166]
[1739370638967,0.11816971,94740.0,94739.0,0.00055166]
[1739370639161,0.11816971,94740.0,94739.0,0.00280114]
[1739370639956,0.11816971,94740.0,94739.0,0.01721001]
[1739370639957,0.11916971,94740.0,94739.0,0.01721001]
[1739370640160,0.11916971,94740.0,94739.0,0.01155166]
[1739370640318,0.11916971,94740.0,94739.0,0.00055166]
[1739370640319,0.32016353,94740.0,94739.0,0.00055166]
[1739370640712,0.26916971,94740.0,94739.0,0.00655166]
[1739370641165,0.29116971,94740.0,94739.0,0.00055166]
[1739370641340,0.34436971,94740.0,94739.0,0.00155166]
[1739370641545,0.42646971,94740.0,94739.0,0.00155166]
[1739370642372,0.42846971,94740.0,94739.0,0.00155166]
[1739370642906,0.27016971,94740.0,94739.0,0.00055166]
[1739370643111,0.25450365,94740.0,94739.0,0.00055166]
[1739370643431,0.30127412,94740.0,94739.0,0.00055166]
[1739370643549,0.25250365,94740.0,94739.0,0.00055166]
[1739370643758,0.27650365,94740.0,94739.0,0.00255166]
[1739370643955,0.27850365,94740.0,94739.0,0.00255166]
[1739370644245,0.27550365,94740.0,94739.0,0.00055166]
[1739370644426,0.38540492,94740.0,94739.0,0.00255166]
[1739370644661,0.43644084,94740.0,94739.0,0.00255166]
[1739370644988,0.44625556,94740.0,94739.0,0.00255166]
[1739370645170,0.308356,94723.0,94722.0,0.0001065]
[1739370645366,0.43385965,94723.0,94722.0,0.00023997]
[1739370645569,0.46790534,94723.0,94722.0,0.00023997]
[1739370645877,0.57040899,94723.0,94722.0,0.00023997]
[1739370646430,0.28654934,94723.0,94722.0,0.00023997]
[1739370646630,0.46189557,94723.0,94722.0,0.00023997]
[1739370646960,0.52148773,94723.0,94722.0,0.00023997]
[1739370647135,0.54448773,94723.0,94722.0,0.00023997]
[1739370647508,0.54348773,94723.0,94722.0,0.00023997]
[1739370647713,0.64599138,94723.0,94722.0,0.00023997]
[1739370647921,0.64699138,94723.0,94722.0,0.00023997]
[1739370648105,0.64799138,94723.0,94722.0,0.00023997]
[1739370648716,0.64899138,94723.0,94722.0,0.00023997]
[1739370648891,0.64699138,94723.0,94722.0,0.00023997]
[1739370649323,0.64699138,94723.0,93455.0,0.002]
[1739370649324,0.1276,94703.0,94663.0,0.211273]
[1739370649521,0.10250365,94687.0,94677.0,0.211244]
[1739370649691,0.15,94686.0,94681.0,0.0062178]
[1739370649894,0.10250365,94685.0,94681.0,0.0062178]
[1739370650706,0.00981472,94684.0,94681.0,0.0062178]
[1739370650903,0.158425,94682.0,94681.0,0.0062178]
[1739370651107,0.127146,94683.0,94657.0,0.01444289]
[1739370651108,0.127146,94683.0,94670.0,0.158443]
[1739370651331,0.127146,94683.0,94666.0,0.00013349]
[1739370651503,0.03600672,94682.0,94671.0,0.00552003]
[1739370651717,0.10026715,94682.0,94666.0,0.00013349]
[1739370651917,0.10250365,94681.0,94672.0,0.00191489]
[1739370652119,0.10250365,94681.0,94676.0,0.158434]
[1739370652542,0.10250365,94681.0,94674.0,0.211251]
[1739370652718,0.12302572,94680.0,94676.0,0.16364016]
[1739370652921,0.12302572,94680.0,94679.0,0.15843]
[1739370653320,0.12302572,94680.0,94679.0,0.0327676]
[1739370653553,0.12302572,94680.0,94679.0,0.44757712]
[1739370653761,0.0437133,94680.0,94679.0,0.41480952]
[1739370653970,0.0196292,94680.0,94679.0,0.16230587]
[1739370654416,0.0196292,94680.0,94679.0,0.00387587]
[1739370654634,0.0196292,94680.0,94676.0,0.158434]
[1739370654861,0.0196292,94680.0,94677.0,0.00388033]
[1739370655091,0.001,94680.0,94677.0,0.00582352]
[1739370655333,0.0196292,94692.0,94677.0,0.00194319]
[1739370655588,0.10250365,94691.0,94677.0,0.00194319]
[1739370655830,0.0196292,94692.0,94672.0,0.211254]
[1739370655831,0.0196292,94692.0,94680.0,0.22500864]
[1739370656068,0.0196292,94692.0,94691.0,0.157409]
[1739370656503,0.0196292,94692.0,94691.0,0.00195479]
[1739370656865,0.01636222,94694.0,94681.0,0.158425]
[1739370657067,0.11997997,94693.0,94670.0,0.01388112]
[1739370657266,0.15,94692.0,94682.0,0.00583463]
[1739370657497,0.10250365,94691.0,94660.0,0.0825]
[1739370657817,0.158426,94682.0,94677.0,0.004]
[1739370658027,0.15,94680.0,94677.0,0.004]
[1739370658326,0.10250365,94679.0,94660.0,0.0825]
[1739370658537,0.158431,94678.0,94664.0,0.158454]
[1739370658680,0.10250365,94677.0,94667.0,0.00588504]
[1739370658878,0.10250365,94677.0,94668.0,0.158448]
[1739370659073,0.10250365,94676.0,94668.0,0.158448]
[1739370659299,0.10250365,94676.0,94667.0,0.00588504]
[1739370659919,0.02551285,94675.0,94667.0,0.00588504]
[1739370660144,0.15844,94673.0,94667.0,0.00588504]
[1739370660320,0.02551285,94675.0,94669.0,0.158445]
[1739370660520,0.1280165,94675.0,94666.0,0.00024009]
[1739370660743,0.10250365,94674.0,94670.0,0.00589548]
[1739370660945,0.10250365,94674.0,94666.0,0.00524009]
[1739370660946,0.15845,94667.0,94666.0,0.00024009]
[1739370661144,0.26095365,94667.0,94666.0,0.00024009]
[1739370661317,0.10250365,94667.0,94666.0,0.00024009]
[1739370661516,0.10250365,94667.0,94666.0,0.15869109]
[1739370661714,0.02551285,94673.0,94668.0,0.158447]
[1739370662156,0.02551285,94673.0,94666.0,0.16461796]
[1739370662334,0.02551285,94673.0,94666.0,0.00816696]
[1739370662768,0.10250365,94672.0,94666.0,0.00816696]
[1739370663108,0.158449,94668.0,94666.0,0.00224009]
[1739370663511,0.10250365,94667.0,94666.0,0.00224009]
[1739370663911,0.14960365,94667.0,94666.0,0.00024009]
[1739370664245,0.22658323,94667.0,94666.0,0.00024009]
[1739370664684,0.17115319,94667.0,94666.0,0.00024009]
[1739370664893,0.25827623,94667.0,94666.0,0.00024009]
[1739370665094,0.21117623,94667.0,94666.0,0.00024009]
[1739370665504,0.21117623,94667.0,94644.0,0.0001067]
[1739370665505,0.2453031,94667.0,94655.0,8.313e-05]
[1739370665720,0.10250365,94657.0,94655.0,8.313e-05]
[1739370665929,0.10250365,94657.0,94656.0,0.308468]
[1739370666129,0.10120406,94657.0,94656.0,0.31542348]
[1739370666533,0.09638281,94667.0,94666.0,0.308451]
[1739370666740,0.14446685,94667.0,94666.0,0.308451]
[1739370666982,0.03133217,94685.0,94684.0,0.158421]
[1739370667182,0.13383582,94685.0,94684.0,0.306421]
[1739370667502,0.211113,94736.0,94684.0,0.306421]
[1739370667503,0.0801,94729.0,94709.0,0.15]
[1739370667705,0.13244999,94737.0,94709.0,0.22532729]
[1739370667908,0.04244408,94740.0,94731.0,0.158343]
[1739370668113,0.13202521,94732.0,94731.0,0.158343]
[1739370668312,0.13202521,94732.0,94731.0,0.16710652]
[1739370668530,0.10263722,94732.0,94731.0,0.16710652]
[1739370668740,0.00013357,94732.0,94731.0,0.17710652]
[1739370668948,0.00213357,94732.0,94731.0,0.20308256]
[1739370669374,0.04244408,94740.0,94739.0,0.168329]
[1739370669561,0.04244408,94740.0,94739.0,0.318329]
[1739370669813,0.04244408,94740.0,94739.0,0.17297434]
[1739370670021,0.04244408,94740.0,94739.0,0.01464534]
[1739370670642,0.04244408,94740.0,94739.0,0.00464534]
[1739370670833,0.15834,94733.0,94726.0,0.009]
[1739370671034,0.14494773,94740.0,94724.0,0.009]
[1739370671035,0.15,94737.0,94724.0,0.009]
[1739370671234,0.10250365,94732.0,94718.0,0.009]
[1739370671387,0.158356,94723.0,94718.0,0.009]
[1739370671601,0.10250365,94722.0,94707.0,0.00913357]
[1739370671850,0.158368,94717.0,94711.0,0.009]
[1739370672048,0.158368,94717.0,94708.0,0.0022782]
[1739370672049,0.12859082,94716.0,94707.0,0.00013357]
[1739370672249,0.12859082,94716.0,94708.0,0.0022782]
[1739370672250,0.158379,94709.0,94708.0,0.0022782]
[1739370672451,0.26088265,94709.0,94707.0,0.00013357]
[1739370672692,0.25250365,94708.0,94707.0,0.00013357]
[1739370673011,0.27550365,94708.0,94707.0,0.00013357]
[1739370673236,0.10250365,94708.0,94707.0,0.00013357]
[1739370673661,0.211146,94721.0,94708.0,0.009]
[1739370674047,0.158379,94709.0,94707.0,0.00013357]
[1739370674201,0.10250365,94708.0,94707.0,0.00013357]
[1739370674820,0.01957713,94720.0,94708.0,0.211175]
[1739370675022,0.01957713,94720.0,94719.0,0.167363]
[1739370675792,0.001,94721.0,94720.0,0.009]
[1739370675991,0.001,94721.0,94720.0,0.11150365]
[1739370676201,0.001,94721.0,94720.0,0.008]
[1739370676851,0.001,94721.0,94720.0,0.11050365]
[1739370677069,0.09394886,94754.0,94739.0,0.316329]
[1739370677281,0.09394886,94754.0,94739.0,0.42347799]
[1739370677691,0.09394886,94754.0,94739.0,0.17097434]
[1739370677890,0.09394886,94754.0,94739.0,0.16297434]
[1739370678067,0.09394886,94754.0,94739.0,0.01264534]
[1739370678284,0.14494773,94740.0,94739.0,0.00877125]
[1739370678685,0.14494773,94740.0,94739.0,0.002]
[1739370678858,0.14594773,94740.0,94739.0,0.008]
[1739370679439,0.158356,94723.0,94721.0,0.008]
[1739370679678,0.211115,94735.0,94733.0,0.008]
[1739370679885,0.158338,94734.0,94733.0,0.008]
[1739370680088,0.04244408,94740.0,94739.0,0.008]
[1739370680441,0.04244408,94740.0,94733.0,0.008]
[1739370680649,0.10250365,94739.0,94733.0,0.008]
[1739370680904,0.158338,94734.0,94733.0,0.008]
[1739370681111,0.15833,94739.0,94738.0,0.008]
[1739370681249,0.04344408,94740.0,94739.0,0.013]
[1739370681452,0.04244408,94740.0,94739.0,0.01264534]
[1739370681652,0.04244408,94740.0,94739.0,0.17312457]
[1739370681865,0.04244408,94740.0,94739.0,0.17212457]
[1739370682347,0.04244408,94740.0,94739.0,0.44762822]
[1739370682549,0.04244408,94740.0,94739.0,0.45262822]
[1739370682550,0.04344408,94740.0,94739.0,0.45262822]
[1739370683150,0.04344408,94740.0,94739.0,0.46687069]
[1739370683695,0.04344408,94740.0,94739.0,0.42962822]
[1739370684010,0.04344408,94740.0,94739.0,0.32712457]
[1739370684216,0.04344408,94740.0,94739.0,0.01879557]
[1739370684410,0.04244408,94740.0,94739.0,0.01379557]
[1739370684635,0.04344408,94740.0,94739.0,0.17812457]
[1739370684839,0.04344408,94740.0,94739.0,0.17212457]
[1739370685035,0.04344408,94740.0,94739.0,0.01379557]
[1739370685237,0.04444408,94740.0,94739.0,0.013]
[1739370685442,0.04344408,94740.0,94739.0,0.007]
[1739370685685,0.04344408,94740.0,94739.0,0.42247799]
[1739370685888,0.04344408,94740.0,94739.0,0.42460639]
[1739370686246,0.04444408,94740.0,94739.0,0.01277374]
[1739370686758,0.04444408,94740.0,94739.0,0.01977374]
[1739370686985,0.04444408,94740.0,94739.0,0.01277374]
[1739370687189,0.04444408,94740.0,94739.0,0.01977374]
[1739370687392,0.04444408,94740.0,94739.0,0.12227739]
[1739370687768,0.04244408,94740.0,94739.0,0.01377374]
[1739370688154,0.20077208,94740.0,94739.0,0.01]
[1739370688384,0.20077208,94740.0,94739.0,0.01464534]
[1739370688586,0.04244408,94740.0,94723.0,0.211139]
[1739370688979,0.20177208,94740.0,94739.0,0.01]
[1739370689191,0.04344408,94740.0,94739.0,0.007]
[1739370689398,0.04344408,94740.0,94739.0,0.01]
[1739370689852,0.04344408,94740.0,94739.0,0.00764534]
[1739370689853,0.20177208,94740.0,94739.0,0.00764534]
[1739370690061,0.30427573,94740.0,94739.0,0.00976762]
[1739370690267,0.30427573,94740.0,94739.0,0.003]
[1739370690810,0.49927573,94740.0,94739.0,0.003]
[1739370691207,0.58107573,94740.0,94739.0,0.003]
[1739370691762,0.158361,94720.0,94719.0,0.00013357]
[1739370691956,0.26086465,94720.0,94719.0,0.00013357]
[1739370694096,0.158361,94720.0,94719.0,0.00013357]
[1739370694336,0.31892905,94720.0,94719.0,0.00313357]
[1739370694533,0.31892905,94720.0,94719.0,0.00013357]
[1739370694708,0.46892905,94720.0,94719.0,0.00013357]
[1739370694919,0.46892905,94720.0,94719.0,0.00313357]
[1739370695317,0.41086465,94720.0,94719.0,0.00313357]
[1739370695944,0.41086465,94720.0,94719.0,0.00013357]
[1739370696151,0.4250319,94720.0,94719.0,0.00213357]
[1739370696366,0.41086465,94720.0,94719.0,0.00013357]
[1739370696561,0.26086465,94720.0,94719.0,0.00013357]
[1739370696967,0.32711383,94720.0,94719.0,0.00013357]
[1739370697079,0.47711383,94720.0,94719.0,0.00013357]
[1739370697290,0.60631383,94720.0,94719.0,0.00013357]
[1739370697484,0.60631383,94720.0,94719.0,0.00213357]
[1739370697485,0.62931383,94720.0,94719.0,0.00213357]
[1739370697886,0.15,94719.0,94707.0,0.0001066]
[1739370698137,0.308381,94708.0,94707.0,0.0001066]
[1739370698338,0.41088465,94708.0,94707.0,0.0001066]
[1739370698541,0.211157,94716.0,94707.0,0.0001066]
[1739370698542,0.211157,94716.0,94708.0,0.007]
[1739370698736,0.211157,94716.0,94707.0,0.0001066]
[1739370698737,0.158367,94717.0,94716.0,0.007]
[1739370699145,0.1584964,94719.0,94718.0,0.007]
[1739370699345,0.0001334,94719.0,94718.0,0.165364]
[1739370699883,0.0001334,94719.0,94718.0,0.17231187]
[1739370700406,0.0001334,94719.0,94718.0,0.00694787]
[1739370700652,0.1584964,94719.0,94718.0,0.00694787]
[1739370700857,0.1584964,94719.0,94718.0,0.007]
[1739370701090,0.0001334,94719.0,94718.0,0.007]
[1739370701430,0.1584974,94719.0,94708.0,0.01968973]
[1739370701638,0.0001334,94719.0,94718.0,0.007]
[1739370701843,0.158378,94710.0,94709.0,0.01379396]
[1739370702074,0.3696474,94719.0,94718.0,0.007311]
[1739370702275,0.0001334,94719.0,94718.0,0.007311]
[1739370702447,0.0001334,94719.0,94718.0,0.01407424]
[1739370702852,0.0001334,94719.0,94718.0,0.17243824]
[1739370704328,0.0001334,94719.0,94718.0,0.27394189]
[1739370704669,0.0001334,94719.0,94718.0,0.17143824]
[1739370704893,0.1584964,94719.0,94718.0,0.01407424]
[1739370705100,0.0001334,94719.0,94718.0,0.01307424]
[1739370705297,0.0001334,94719.0,94718.0,0.01075314]
[1739370705708,0.0001334,94719.0,94718.0,0.01306579]
[1739370705908,0.0001334,94719.0,94718.0,0.11656944]
[1739370706160,0.0001334,94719.0,94718.0,0.12101158]
[1739370706369,0.0001334,94719.0,94718.0,0.27101158]
[1739370706509,0.0001334,94719.0,94718.0,0.35021158]
[1739370706719,0.0001334,94719.0,94718.0,0.01250793]
[1739370706940,0.0001334,94719.0,94718.0,0.01850793]
[1739370707164,0.0001334,94719.0,94718.0,0.01861453]
[1739370707377,0.0001334,94719.0,94718.0,0.01761453]
[1739370707618,0.0001334,94719.0,94718.0,0.02161453]
[1739370707855,0.0001334,94719.0,94718.0,0.01761453]
[1739370708352,0.0011334,94719.0,94718.0,0.02161453]
[1739370708558,0.0011334,94719.0,94718.0,0.01161453]
[1739370708764,0.0021334,94719.0,94718.0,0.02161453]
[1739370709012,0.0001334,94719.0,94718.0,0.01761453]
[1739370709597,0.0001334,94719.0,94718.0,0.01085974]
[1739370709797,0.0001334,94719.0,94718.0,0.01311908]
[1739370711060,0.0011334,94719.0,94718.0,0.01811908]
[1739370711257,0.0001334,94719.0,94718.0,0.17148308]
[1739370711460,0.0001334,94719.0,94718.0,0.01811908]
[1739370711660,0.0011334,94719.0,94718.0,0.01811908]
[1739370711859,0.0011334,94719.0,94718.0,0.01311908]
[1739370712074,0.1594964,94719.0,94718.0,0.01585974]
[1739370712272,0.0021334,94719.0,94718.0,0.01585974]
[1739370712437,0.0011334,94719.0,94718.0,0.01312026]
[1739370712639,0.0021334,94719.0,94718.0,0.01812026]
[1739370713417,0.0021334,94719.0,94718.0,0.12062391]
[1739370713586,0.0021334,94719.0,94718.0,0.19642391]
[1739370713787,0.0021334,94719.0,94718.0,0.19242391]
[1739370713989,0.0001334,94719.0,94718.0,0.36319066]
[1739370714189,0.0001334,94719.0,94718.0,0.42029066]
[1739370714391,0.04244408,94740.0,94718.0,0.42029066]
[1739370714392,0.04244408,94740.0,94739.0,0.242829]
[1739370714589,0.04244408,94740.0,94739.0,0.34533265]
[1739370714801,0.04244408,94740.0,94739.0,0.37180574]
[1739370714977,0.04244408,94740.0,94739.0,0.58760574]
[1739370715191,0.04244408,94740.0,94739.0,0.62044179]
[1739370715600,0.04244408,94740.0,94739.0,0.64191891]
[1739370715994,0.00022408,94740.0,94739.0,0.64191891]
[1739370716399,0.00022408,94740.0,94739.0,0.65506033]
[1739370716824,0.00022408,94740.0,94739.0,0.62222428]
[1739370717038,0.00022408,94740.0,94739.0,0.65502415]
[1739370717267,0.00022408,94780.0,94779.0,0.162262]
[1739370717450,0.00066924,94780.0,94779.0,0.162262]
[1739370717652,0.00066924,94780.0,94779.0,0.26814964]
[1739370717828,0.00066924,94780.0,94779.0,0.26714964]
[1739370718220,0.00066924,94780.0,94779.0,0.41714964]
[1739370718449,0.00066924,94780.0,94779.0,0.45014964]
[1739370719423,0.00066924,94780.0,94779.0,0.46014964]
[1739370719571,0.00022408,94803.0,94802.0,0.161224]
[1739370719805,0.00022408,94803.0,94802.0,0.27372765]
[1739370719983,0.00035759,94803.0,94802.0,0.34666045]
[1739370720189,0.00035759,94803.0,94802.0,0.26706045]
[1739370720776,0.00035759,94803.0,94802.0,0.41706045]
[1739370720978,0.00035759,94803.0,94802.0,0.46308861]
[1739370721185,0.00035759,94803.0,94802.0,0.48685637]
[1739370721521,0.00035759,94803.0,94802.0,0.46308861]
[1739370721852,0.00035759,94803.0,94802.0,0.43008861]
[1739370722062,0.00035759,94803.0,94802.0,0.28408861]
[1739370722241,0.00035759,94803.0,94802.0,0.27406045]
[1739370722472,0.00035759,94803.0,94802.0,0.1645568]
[1739370722677,0.00035759,94803.0,94802.0,0.26706045]
[1739370722878,0.00035759,94803.0,94802.0,0.27406045]
[1739370723058,0.00035759,94803.0,94802.0,0.28860569]
[1739370723191,0.00035759,94803.0,94802.0,0.29087162]
[1739370723395,0.00035759,94803.0,94802.0,0.27332638]
[1739370724030,0.00035759,94803.0,94802.0,0.01259873]
[1739370724224,0.18597658,94803.0,94802.0,0.007]
[1739370724475,0.30857959,94803.0,94802.0,0.007]
[1739370724676,0.41108324,94803.0,94802.0,0.007]
[1739370724932,0.308226,94801.0,94800.0,0.003]
[1739370725107,0.15,94800.0,94799.0,0.003]
[1739370725583,0.00035759,94803.0,94802.0,0.003]
[1739370725859,0.00035759,94803.0,94802.0,0.161224]
[1739370726088,0.00035759,94803.0,94802.0,0.16099014]
[1739370726301,0.00035759,94803.0,94802.0,0.26378643]
[1739370727180,0.00022387,94816.0,94813.0,0.158206]
[1739370727393,0.00022387,94816.0,94813.0,0.42070965]
[1739370727589,0.00022387,94816.0,94813.0,0.42297689]
[1739370728034,0.00022387,94816.0,94813.0,0.45597689]
[1739370728241,0.00022387,94816.0,94813.0,0.50107689]
[1739370728459,8.7e-07,94814.0,94813.0,0.59958632]
[1739370728711,0.00022408,94835.0,94833.0,0.01]
[1739370728912,0.00035723,94834.0,94833.0,0.29367565]
[1739370729148,0.00035723,94834.0,94833.0,0.44367565]
[1739370729352,0.00035723,94834.0,94833.0,0.45587537]
[1739370729908,0.00035723,94834.0,94833.0,0.46287537]
[1739370730135,0.00035723,94834.0,94833.0,1.44529637]
[1739370730315,0.00022408,94835.0,94834.0,0.043]
[1739370730518,0.00022408,94835.0,94834.0,0.95265965]
[1739370730829,0.00022408,94835.0,94834.0,0.28786386]
[1739370731051,0.00022408,94835.0,94834.0,0.10486386]
[1739370731467,0.00022408,94835.0,94834.0,0.13786386]
[1739370731675,0.00022408,94835.0,94834.0,0.75359986]
[1739370731879,0.00022408,94835.0,94834.0,0.51985286]
[1739370732300,0.00022408,94835.0,94834.0,0.29486386]
[1739370732518,0.00022408,94835.0,94834.0,0.28786386]
[1739370732743,0.00022408,94835.0,94834.0,0.28486386]
[1739370733184,0.00022408,94835.0,94834.0,0.25486386]
[1739370733413,0.00022408,94835.0,94834.0,0.10486386]
[1739370733652,0.00022408,94835.0,94834.0,0.00236021]
[1739370734097,0.00022408,94835.0,94816.0,0.210933]
[1739370734314,0.00022408,94835.0,94824.0,0.15831936]
[1739370734533,0.00022408,94835.0,94834.0,0.007]
[1739370734998,0.00022408,94835.0,94834.0,0.10950365]
[1739370735234,0.00022408,94835.0,94834.0,0.31478595]
[1739370735853,0.00022408,94835.0,94834.0,0.29178595]
[1739370736282,0.00022408,94835.0,94834.0,0.12578595]
[1739370736502,0.00022408,94835.0,94834.0,0.14178595]
[1739370736705,0.00022408,94835.0,94834.0,0.29178595]
[1739370736913,0.00022408,94835.0,94834.0,0.30178595]
[1739370737346,0.00022408,94835.0,94834.0,0.63901795]
[1739370737947,0.00022408,94835.0,94834.0,0.30878595]
[1739370738153,0.00022408,94835.0,94834.0,0.294021]
[1739370738352,0.00022408,94835.0,94834.0,0.128021]
[1739370738782,0.00022408,94835.0,94834.0,0.10800031]
[1739370738990,0.00022408,94835.0,94834.0,0.11500031]
[1739370739405,0.00022408,94835.0,94834.0,0.2252503]
[1739370739610,0.00022408,94835.0,94834.0,0.37900031]
[1739370739811,8e-08,94835.0,94834.0,0.38900031]
[1739370740346,0.00022387,94868.0,94867.0,0.081]
[1739370740552,0.01022387,94963.0,94909.0,0.00852353]
[1739370740553,0.00147647,94945.0,94909.0,0.00852353]
[1739370740798,0.00086769,94948.0,94935.0,0.34580198]
[1739370740993,0.205979,94950.0,94937.0,0.157998]
[1739370741192,0.205979,94950.0,94935.0,0.34580198]
[1739370741193,0.00086769,94939.0,94935.0,0.34580198]
[1739370741409,0.00086769,94935.0,94923.0,0.08424999]
[1739370741841,0.00086769,94925.0,94924.0,0.16108166]
[1739370742044,0.048445,94950.0,94935.0,0.158002]
[1739370742045,0.00086769,94937.0,94935.0,0.158002]
[1739370742224,0.048445,94950.0,94931.0,0.210679]
[1739370742428,0.00086769,94947.0,94946.0,0.157983]
[1739370742632,0.00086769,94938.0,94935.0,0.158002]
[1739370742831,0.00086769,94938.0,94906.0,0.316102]
[1739370742832,0.00086769,94929.0,94910.0,0.43005197]
[1739370743052,0.00086769,94928.0,94927.0,0.158014]
[1739370743252,0.048445,94950.0,94939.0,0.157996]
[1739370743253,0.00086769,94940.0,94939.0,0.157996]
[1739370744083,0.00131269,94950.0,94949.0,0.157979]
[1739370744290,0.000445,94950.0,94949.0,0.157979]
[1739370744495,0.000445,94950.0,94949.0,0.26048265]
[1739370744700,0.000445,94950.0,94949.0,0.42357756]
[1739370745116,0.000445,94950.0,94949.0,0.27357756]
[1739370745290,0.000445,94950.0,94949.0,0.28058374]
[1739370745708,0.000445,94950.0,94949.0,0.27658374]
[1739370745874,0.000445,94950.0,94949.0,0.28358374]
[1739370746076,0.000445,94950.0,94949.0,0.45658374]
[1739370747089,0.00035235,94950.0,94949.0,0.45658374]
[1739370747304,0.00022387,94962.0,94961.0,0.307959]
[1739370747547,0.00013348,94962.0,94961.0,0.44557452]
[1739370747755,1.621e-05,94970.0,94969.0,0.307946]
[1739370748092,1.621e-05,94970.0,94969.0,0.44258196]
[1739370748320,1.621e-05,94970.0,94969.0,0.45554378]
[1739370748728,1.621e-05,94970.0,94969.0,1.95554378]
[1739370748928,1.621e-05,94970.0,94969.0,2.66458678]
[1739370749129,1.621e-05,94970.0,94969.0,2.65450978]
[1739370749387,0.0046811,95013.0,95012.0,0.157874]
[1739370749593,0.00481438,95013.0,95012.0,0.26037765]
[1739370749717,0.00481438,95013.0,95012.0,0.26324416]
[1739370750690,0.00481438,95013.0,95012.0,0.28624416]
[1739370750894,0.00481438,95013.0,95012.0,0.43624416]
[1739370751043,0.0001064,95045.0,95022.0,0.330858]
[1739370751261,0.0001064,95045.0,95022.0,0.43336165]
[1739370751462,0.00086769,95041.0,95022.0,0.26320601]
[1739370751665,0.00086769,95038.0,95022.0,0.26320601]
[1739370751909,0.00086769,95041.0,95022.0,0.26320601]
[1739370752117,0.0001064,95045.0,95022.0,0.42622006]
[1739370752315,0.0001064,95045.0,95022.0,0.45622006]
[1739370753091,0.0001064,95045.0,95022.0,0.46535237]
[1739370753264,0.0001064,95045.0,95022.0,0.55577157]
[1739370753468,0.0001064,95045.0,95044.0,0.157821]
[1739370753697,0.00055041,95045.0,95044.0,0.28755206]
[1739370754712,0.00055041,95045.0,95044.0,0.43755206]
[1739370754856,0.00055041,95045.0,95044.0,0.44755206]
[1739370755057,0.00055041,95045.0,95044.0,0.46745256]
[1739370755271,0.00055041,95045.0,95044.0,0.45045256]
[1739370755491,0.00055041,95045.0,95044.0,0.26455206]
[1739370755706,0.00055041,95045.0,95044.0,0.16904841]
[1739370755972,0.00055041,95045.0,95044.0,0.27155206]
[1739370756350,0.00055041,95045.0,95044.0,0.29455206]
[1739370756553,0.00055041,95045.0,95044.0,0.2973477]
[1739370756786,0.00055041,95045.0,95044.0,0.4473477]
[1739370756986,0.00055041,95045.0,95044.0,0.4403477]
[1739370757190,0.0004498,95045.0,95044.0,0.4403477]
[1739370757532,0.0004498,95045.0,95044.0,0.2743477]
[1739370758166,0.20773649,95045.0,95044.0,0.01402305]
[1739370758325,0.20773649,95045.0,95044.0,0.00702305]
[1739370758522,0.04991749,95045.0,95044.0,0.007]
[1739370758945,0.04991749,95045.0,95021.0,0.08424999]
[1739370758946,0.00086769,95041.0,95040.0,0.157827]
[1739370759103,0.0490498,95045.0,95043.0,0.157822]
[1739370759308,0.00086769,95044.0,95043.0,0.157822]
[1739370759507,0.0004498,95045.0,95043.0,0.157822]
[1739370759508,0.0004498,95045.0,95043.0,0.10250365]